fUSD/lending_fUSD_20240915
["ID","MTS","AMOUNT","RATE_DAILY","PERIOD"]
[338250920,1726439437610,-15165.397538,0.000129,2]
[338250921,1726439437620,-174.70793814,0.000129,2]
[338250922,1726439437629,-761.684,0.0001291,2]
[338250923,1726439437641,-180.66,0.0001291,2]
[338250924,1726439437652,-160.23867574,0.00012913,2]
[338250925,1726439437665,-152.22,0.0001299,2]
[338250926,1726439437678,-152.22,0.0001299,2]
[338250927,1726439437688,-9080.89,0.00012995,2]
[338250928,1726439437698,-500.0,0.00012998,2]
[338250929,1726439437707,-500.0,0.00012998,2]
[338250930,1726439437717,-1345.5,0.00012998,2]
[338250931,1726439437727,-300.0,0.00012999,2]
[338250932,1726439437737,-150.0,0.00012999,2]
[338250933,1726439437747,-21277.27879127,0.00013,2]
[338250961,1726439439626,-471.8799618,0.00013,2]
[338250962,1726439439713,-18846.72509989,0.00013,2]
[338250963,1726439439726,-152985.93745775,0.00013,2]
[338250964,1726439439737,-101084.62441814,0.00013,2]
[338250965,1726439439748,-933.04,0.00013,2]
[338250966,1726439439758,-1760.25571169,0.00013,2]
[338250967,1726439439768,-1003.06,0.00013,2]
[338250968,1726439439778,-153367.45359133,0.00013,2]
[338250969,1726439439790,-2988.78326536,0.00013,2]
[338251024,1726439442617,-11174.8182083,0.00013,2]
[338251027,1726439443507,-823.78370028,0.00013,2]
[338251028,1726439443519,-676.96199,0.00013,2]
[338251029,1726439443531,-5986.09916878,0.00013,2]
[338251030,1726439443543,-532.36978236,0.00013,2]
[338251032,1726439445489,-1533.09096458,0.00013,2]
[338251033,1726439445503,-1569.25968238,0.00013,2]
[338251034,1726439445515,-879.41035815,0.00013,2]
[338251035,1726439445693,-73831.07729537,0.00013,2]
[338251037,1726439445704,-8849.56618415,0.00013,2]
[338251040,1726439445715,-7622.55047678,0.00013,2]
[338251042,1726439445727,-818.0573772,0.00013,2]
[338251044,1726439445738,-959.66047797,0.00013,2]
[338251047,1726439445760,-379.89623438,0.00013,2]
[338251050,1726439445772,-20477.12406079,0.00013,2]
[338251052,1726439445790,-2210.0,0.00013,2]
[338251055,1726439445803,-20194.41190834,0.00013,2]
[338251056,1726439445817,-5177.5175671,0.00013,2]
[338251057,1726439445830,-3017.17189591,0.00013,2]
[338251058,1726439445841,-470.22347517,0.00013,2]
[338251059,1726439445856,-2318.42279138,0.00013,2]
[338251060,1726439445867,-8571.89705668,0.00013,2]
[338251061,1726439445878,-607.71676,0.00013,2]
[338251062,1726439445889,-453.08776319,0.00013,2]
[338251063,1726439445900,-2015.57078776,0.00013,2]
[338251072,1726439474582,500.0,0.00010323,2]
[338251073,1726439519086,173.92,0.00012623,2]
[338251074,1726439555622,238.29,0.00010684,2]
[338251075,1726439788392,160.76,0.00010959,2]
[338251077,1726439871854,250.0,0.0001234,2]
[338251078,1726439881873,160.0,0.00012,2]
[338251079,1726439957764,840.0,0.00012358,2]
[338251081,1726440204139,250.0,0.00012335,2]
[338251082,1726440215103,240.9,0.00010387,2]
[338251083,1726440284419,154.64,0.00010959,2]
[338251084,1726440330044,2000.0,0.00012262,2]
[338251429,1726440442472,250.0,0.00012287,2]
[338251430,1726440495450,328.0,0.00012315,2]
[338251431,1726440509432,310.1,0.00012317,2]
[338251438,1726440631661,-240.9,0.00012651,2]
[338251439,1726440631671,-224.93266947,0.000129,2]
[338251440,1726440631682,-174.70793814,0.000129,2]
[338251441,1726440631691,-321.5946359,0.000129,2]
[338251442,1726440631701,-152.33842546,0.000129,2]
[338251443,1726440631711,-150.0,0.00012911,2]
[338251444,1726440631721,-609.347,0.00012912,2]
[338251445,1726440631731,-180.66,0.00012912,2]
[338251446,1726440631741,-167.0,0.00012924,2]
[338251447,1726440631751,-413.39181347,0.00012973,2]
[338251448,1726440631763,-86.60818653,0.00012973,2]
[338251449,1726440631773,-152.02,0.0001299,2]
[338251450,1726440631782,-673.75983986,0.00012998,2]
[338251451,1726440631794,-380.03886704,0.00012998,2]
[338251452,1726440631806,-508.47198714,0.00012998,2]
[338251453,1726440631818,-454.16657295,0.00012998,2]
[338251454,1726440631827,-499.99,0.00012998,2]
[338251455,1726440631837,-8812.6921658,0.00013,2]
[338251456,1726440631849,-2836.89999999,0.00013,2]
[338251457,1726440631860,-418.90217464,0.00013,2]
[338251458,1726440631872,-246768.02021986,0.00013,2]
[338251459,1726440631883,-8458.18332674,0.00013,2]
[338251460,1726440631895,-966.43463374,0.00013,2]
[338251461,1726440631907,-618.03494291,0.00013,2]
[338251462,1726440631927,-739.69628748,0.00013,2]
[338251463,1726440631938,-704.86,0.00013,2]
[338251464,1726440631950,-25408.31611214,0.00013,2]
[338251465,1726440631961,-590.16069176,0.00013,2]
[338251466,1726440631973,-593.55351269,0.00013,2]
[338251467,1726440631987,-530.14499983,0.00013,2]
[338251469,1726440631998,-1316.83678172,0.00013,2]
[338251471,1726440632009,-925.07724057,0.00013,2]
[338251473,1726440637729,-660.84,0.00013,2]
[338251474,1726440637823,-59754.35447066,0.00013,2]
[338251475,1726440637835,-456.56650136,0.00013,2]
[338251476,1726440637923,-544.37084928,0.00013,2]
[338251477,1726440637939,-31825.20985538,0.00013,2]
[338251478,1726440637948,-71259.05423297,0.00013,2]
[338251479,1726440638095,-29912.65898902,0.00013,2]
[338251481,1726440638106,-7835.40291658,0.00013,2]
[338251492,1726440639817,-569.875,0.00013,2]
[338251493,1726440639830,-685.73642672,0.00013,2]
[338251494,1726440639843,-1157.88050096,0.00013,2]
[338251517,1726440642747,-10134.37836584,0.00013,2]
[338251518,1726440642848,-550.37500001,0.00013,2]
[338251519,1726440642860,-1745.585,0.00013,2]
[338251528,1726440643874,-514.96451937,0.00013,2]
[338251529,1726440643904,-19868.25852061,0.00013,2]
[338251530,1726440643916,-48387.3723763,0.00013,2]
[338251531,1726440645699,-549.8,0.00013,2]
[338251532,1726440645719,-5963.8,0.00013,2]
[338251533,1726440645751,-4970.41894437,0.00013,2]
[338251534,1726440645768,-1758.51472622,0.00013,2]
[338251535,1726440645868,-329.968208,0.00013,2]
[338251536,1726440645880,-312.486,0.00013,2]
[338251537,1726440645969,-43108.08925,0.00013,2]
[338251538,1726440645981,-1576.40621,0.00013,2]
[338251540,1726440705959,242.78,0.00012624,2]
[338251541,1726440720761,3078.42,0.00012624,2]
[338251542,1726440720807,12834.72,0.00012624,2]
[338251543,1726440723502,442.4434,0.00012551,2]
[338251544,1726440733702,245.33,0.00010706,2]
[338251545,1726440840773,151.95,0.00010959,2]
[338251546,1726440941520,250.0,0.00012408,2]
[338251547,1726441098627,173.92,0.00012408,2]
[338251548,1726441224762,245.89,0.00010543,2]
[338251549,1726441273470,154.65,0.00012366,2]
[338251550,1726441273514,154.65,0.00012372,2]
[338251551,1726441273623,154.65,0.00012377,2]
[338251552,1726441273857,154.65,0.00012383,2]
[338251553,1726441274077,154.65,0.00012389,2]
[338251554,1726441274284,154.65,0.00012394,2]
[338251555,1726441274526,154.65,0.000124,2]
[338251556,1726441274757,154.65,0.00012405,2]
[338251557,1726441274965,154.65,0.00012411,2]
[338251558,1726441275172,154.65,0.00012417,2]
[338251559,1726441275394,154.65,0.00012422,2]
[338251560,1726441275622,154.65,0.00012428,2]
[338251561,1726441279047,1000.0,0.00012397,2]
[338251562,1726441365225,172.19,0.00010959,2]
[338251563,1726441452664,250.0,0.00012259,2]
[338251564,1726441644628,500.0,0.000155,30]
[338251565,1726441644970,500.0,0.000155,30]
[338251566,1726441645304,500.0,0.000155,30]
[338251567,1726441645673,500.0,0.000155,30]
[338251568,1726441646162,500.0,0.000155,30]
[338251569,1726441646486,500.0,0.000155,30]
[338251570,1726441667771,189.1,0.00012199,2]
[338251571,1726441684229,479.17,0.00011664,2]
[338251572,1726441742927,-154.19,0.00012661,2]
[338251574,1726441742956,-47.34034653,0.00012678,2]
[338251575,1726441757632,250.0,0.00012283,2]
[338251594,1726441831869,-127.74965347,0.00012678,2]
[338251595,1726441831880,-237.73636191,0.00012766,2]
[338251596,1726441831890,-245.89,0.00012807,2]
[338251597,1726441831900,-300.0,0.00012829,2]
[338251598,1726441831917,-1261.0,0.0001283,2]
[338251599,1726441831930,-150.0,0.0001283,2]
[338251600,1726441831940,-810.0,0.0001283,2]
[338251601,1726441831950,-558.0,0.0001283,2]
[338251602,1726441831959,-932.0,0.0001283,2]
[338251603,1726441831971,-1902.0,0.0001283,2]
[338251604,1726441831980,-553.0,0.0001283,2]
[338251605,1726441831990,-150.0,0.00012899,2]
[338251606,1726441832000,-319.8688,0.000129,2]
[338251607,1726441832011,-269.2935,0.000129,2]
[338251608,1726441832021,-3684.95215903,0.000129,2]
[338251609,1726441832033,-430.09097032,0.000129,2]
[338251610,1726441832045,-530.84773883,0.000129,2]
[338251611,1726441832057,-295.5,0.000129,2]
[338251612,1726441832076,-4781.02268136,0.000129,2]
[338251613,1726441832089,-24120.48855046,0.000129,2]
[338251615,1726441832099,-609.101,0.00012922,2]
[338251616,1726441832108,-195.807,0.00012922,2]
[338251617,1726441832118,-500.0,0.00012973,2]
[338251618,1726441832127,-152.02,0.0001299,2]
[338251619,1726441832137,-153078.58344955,0.00013,2]
[338251620,1726441832148,-417.19077401,0.00013,2]
[338251621,1726441832165,-4736.906496,0.00013,2]
[338251663,1726441837971,-2001.9786598,0.00013,2]
[338251664,1726441837986,-3471.28718574,0.00013,2]
[338251665,1726441838200,-26650.87425,0.00013,2]
[338251666,1726441838237,-59500.0,0.00013,2]
[338251825,1726441839940,-320.76755909,0.00013,2]
[338251827,1726441839955,-319475.14011013,0.00013,2]
[338251829,1726441839965,-854.74,0.00013,2]
[338251831,1726441839976,-1001.12,0.00013,2]
[338251833,1726441839986,-209.59593,0.00013,2]
[338251835,1726441839995,-209.59594,0.00013,2]
[338251838,1726441840017,-432.11339,0.00013,2]
[338251840,1726441840029,-432.1134,0.00013,2]
[338251842,1726441840040,-432.1134,0.00013,2]
[338251844,1726441840050,-432.11339,0.00013,2]
[338251847,1726441840060,-991.46,0.00013013,2]
[338251849,1726441840070,-3327.66,0.00013013,2]
[338251851,1726441840080,-500.0,0.00013013,2]
[338251853,1726441840090,-3555.11,0.00013013,2]
[338251855,1726441840100,-4057.5,0.00013013,2]
[338251857,1726441840110,-2583.01,0.00013013,2]
[338251859,1726441840119,-4180.3,0.00013013,2]
[338251861,1726441840130,-2083.63,0.00013013,2]
[338251863,1726441840140,-2053.95,0.00013013,2]
[338251865,1726441840150,-500.0,0.00013013,2]
[338251867,1726441840160,-7111.5,0.00013013,2]
[338251869,1726441840171,-2774.44,0.00013013,2]
[338251870,1726441840182,-500.0,0.00013013,2]
[338251871,1726441840192,-7953.64,0.00013013,2]
[338251872,1726441840202,-2946.8,0.00013013,2]
[338251873,1726441840212,-2383.94,0.00013013,2]
[338251874,1726441840221,-328.18245882,0.00013013,2]
[338251875,1726441840231,-500.0,0.00013013,2]
[338251876,1726441840241,-248.0,0.00013019,2]
[338251877,1726441840251,-806.0,0.00013019,2]
[338251878,1726441840260,-1124.0,0.00013019,2]
[338251879,1726441840270,-1918.0,0.00013019,2]
[338251880,1726441840280,-3345.0,0.00013019,2]
[338251881,1726441840289,-5863.0,0.00013044,2]
[338251882,1726441840299,-150.0,0.00013044,2]
[338251883,1726441840309,-13481.0,0.00013044,2]
[338251884,1726441840319,-1146.0,0.00013044,2]
[338251885,1726441840329,-5056.88142582,0.0001305,2]
[338251886,1726441840339,-3923.97,0.00013075,2]
[338251887,1726441840350,-1076.42,0.00013075,2]
[338251888,1726441840360,-500.0,0.00013075,2]
[338251889,1726441840370,-2449.38,0.00013075,2]
[338251890,1726441840380,-2481.83,0.00013075,2]
[338251891,1726441840390,-1678.15,0.00013075,2]
[338251892,1726441840400,-509.08,0.00013075,2]
[338251893,1726441840414,-1982.23,0.00013075,2]
[338251894,1726441840431,-500.0,0.00013075,2]
[338251895,1726441840441,-150.0,0.00013076,2]
[338251896,1726441840456,-264.082,0.00013076,2]
[338251897,1726441840468,-250.0,0.00013076,2]
[338251899,1726441840479,-201.533,0.00013076,2]
[338251901,1726441840489,-624.0,0.00013076,2]
[338251903,1726441840501,-1548.0,0.00013076,2]
[338251905,1726441840511,-465.791,0.00013076,2]
[338251907,1726441840520,-203.0,0.0001311,2]
[338251909,1726441840531,-212.0,0.0001311,2]
[338251912,1726441840541,-1000.0,0.000132,2]
[338251914,1726441840551,-226.0,0.000132,2]
[338251916,1726441840561,-359.0,0.000132,2]
[338251918,1726441840572,-796.0,0.00013269,2]
[338251920,1726441840582,-203.0,0.0001328,2]
[338251922,1726441840592,-212.0,0.0001328,2]
[338251924,1726441840603,-531.6,0.000133,2]
[338251926,1726441840613,-845.02,0.000133,2]
[338251928,1726441840623,-844.59,0.000133,2]
[338251930,1726441840633,-532.55,0.000133,2]
[338251932,1726441840644,-422.51,0.000133,2]
[338251934,1726441840654,-422.51,0.000133,2]
[338251936,1726441840665,-422.51,0.000133,2]
[338251938,1726441840676,-422.51,0.000133,2]
[338251940,1726441840686,-532.7,0.000133,2]
[338251942,1726441840697,-1000.0,0.00013382,2]
[338251944,1726441840707,-1000.0,0.00013382,2]
[338251946,1726441840717,-1000.0,0.00013382,2]
[338251948,1726441840727,-1000.0,0.00013382,2]
[338251950,1726441840738,-1000.0,0.00013382,2]
[338251952,1726441840747,-1000.0,0.00013382,2]
[338251954,1726441840759,-1000.0,0.00013382,2]
[338251956,1726441840769,-1000.0,0.00013382,2]
[338251958,1726441840779,-1000.0,0.00013382,2]
[338251960,1726441840789,-1000.0,0.00013382,2]
[338251962,1726441840799,-1000.0,0.00013382,2]
[338251964,1726441840809,-1000.0,0.00013382,2]
[338251966,1726441840819,-1000.0,0.00013382,2]
[338251968,1726441840829,-1000.0,0.00013382,2]
[338251970,1726441840839,-1000.0,0.00013382,2]
[338251972,1726441840848,-150.0,0.000134,2]
[338251974,1726441840858,-150.0,0.000134,2]
[338251976,1726441840868,-150.0,0.000134,2]
[338251978,1726441840878,-150.0,0.000134,2]
[338251981,1726441840894,-150.0,0.000134,2]
[338251983,1726441840906,-150.0,0.000134,2]
[338251985,1726441840916,-150.0,0.000134,2]
[338251987,1726441840926,-150.0,0.000134,2]
[338251989,1726441840936,-150.0,0.000134,2]
[338251991,1726441840949,-150.0,0.000134,2]
[338251993,1726441840959,-154.76,0.000134,2]
[338251995,1726441840970,-1363.52,0.00013416,2]
[338251997,1726441840980,-2383.4,0.00013416,2]
[338251999,1726441840990,-500.0,0.00013416,2]
[338252001,1726441840999,-1069.49,0.00013416,2]
[338252003,1726441841009,-960.8,0.00013416,2]
[338252005,1726441841019,-150.062,0.00013432,2]
[338252007,1726441841029,-496.078,0.00013432,2]
[338252009,1726441841039,-203.0,0.0001345,2]
[338252011,1726441841049,-212.0,0.0001345,2]
[338252013,1726441841059,-5026.65871,0.000135,2]
[338252015,1726441841070,-70594.40398874,0.000136,2]
[338252017,1726441841080,-203.0,0.0001362,2]
[338252019,1726441841090,-212.0,0.0001362,2]
[338252021,1726441841100,-219.97,0.00013687,2]
[338252023,1726441841110,-4057.5,0.00013698,2]
[338252025,1726441841120,-2751.0,0.00013699,2]
[338252027,1726441841130,-150.0,0.00013699,2]
[338252029,1726441841140,-200.0,0.00013699,2]
[338252031,1726441841150,-500.0,0.00013699,2]
[338252033,1726441841160,-854.35,0.00013699,2]
[338252036,1726441841170,-1250.0,0.000137,2]
[338252038,1726441841181,-600.0,0.00013706,2]
[338252040,1726441841191,-600.0,0.00013706,2]
[338252042,1726441841202,-991.46,0.00013788,2]
[338252044,1726441841212,-500.0,0.00013788,2]
[338252046,1726441841221,-2583.01,0.00013788,2]
[338252048,1726441841232,-2083.63,0.00013788,2]
[338252050,1726441841243,-2053.95,0.00013788,2]
[338252052,1726441841253,-7953.64,0.00013788,2]
[338252054,1726441841263,-2383.94,0.00013788,2]
[338252056,1726441841274,-163.3433782,0.00013798,2]
[338252058,1726441841283,-203.0,0.000138,2]
[338252060,1726441841293,-212.0,0.000138,2]
[338252062,1726441841304,-150.0,0.00013811,2]
[338252064,1726441841314,-152.0,0.00013831,3]
[338252067,1726441841328,-310.1,0.00013857,2]
[338252069,1726441841339,-666.12389189,0.00013868,2]
[338252071,1726441841349,-3327.66,0.00013886,2]
[338252073,1726441841360,-3555.11,0.00013886,2]
[338252075,1726441841369,-4180.3,0.00013886,2]
[338252077,1726441841380,-500.0,0.00013886,2]
[338252079,1726441841390,-7111.5,0.00013886,2]
[338252081,1726441841400,-2774.44,0.00013886,2]
[338252083,1726441841410,-500.0,0.00013886,2]
[338252085,1726441841421,-2946.8,0.00013886,2]
[338252087,1726441841432,-536.0,0.00013887,2]
[338252089,1726441841442,-26520.99632,0.00013887,2]
[338252091,1726441841453,-6630.249081,0.00013887,2]
[338252093,1726441841463,-35751.526646,0.00013887,2]
[338252095,1726441841473,-1610.805947,0.00013887,2]
[338252097,1726441841483,-183.994761,0.00013887,2]
[338252099,1726441841493,-971.881423,0.00013887,2]
[338252101,1726441841504,-204.5009,0.00013887,2]
[338252103,1726441841515,-1357.9847457,0.00013887,2]
[338252105,1726441841525,-54390.38804839,0.00013887,2]
[338252107,1726441841535,-500.0,0.00013898,2]
[338252109,1726441841545,-673.78675147,0.00013899,2]
[338252111,1726441841555,-1076.42,0.00013899,2]
[338252113,1726441841565,-991.46,0.00013899,2]
[338252115,1726441841575,-500.0,0.00013899,2]
[338252117,1726441841586,-4057.5,0.00013899,2]
[338252119,1726441841596,-2583.01,0.00013899,2]
[338252121,1726441841607,-2083.63,0.00013899,2]
[338252124,1726441841618,-2053.95,0.00013899,2]
[338252126,1726441841629,-2449.38,0.00013899,2]
[338252128,1726441841639,-7953.64,0.00013899,2]
[338252130,1726441841649,-509.08,0.00013899,2]
[338252132,1726441841660,-2383.94,0.00013899,2]
[338252134,1726441841670,-1982.23,0.00013899,2]
[338252136,1726441841680,-500.0,0.00013899,2]
[338252138,1726441841690,-5000.0,0.000139,2]
[338252140,1726441841699,-3391.437712,0.000139,2]
[338252142,1726441841710,-151.0,0.00013919,2]
[338252144,1726441841720,-1000.0,0.00013947,2]
[338252146,1726441841730,-796.0,0.00013968,2]
[338252148,1726441841740,-203.0,0.0001397,2]
[338252150,1726441841751,-212.0,0.0001397,2]
[338252152,1726441841765,-500.0,0.00013987,2]
[338252154,1726441841776,-500.0,0.00013996,2]
[338252157,1726441841786,-267.73333324,0.00014,2]
[338252159,1726441841796,-1000.4994,0.00014,2]
[338252161,1726441841806,-150.0,0.00014,5]
[338252163,1726441841816,-565.5771,0.00014,2]
[338252165,1726441841826,-718.3108,0.00014,2]
[338252167,1726441841836,-500.0,0.00014005,2]
[338252169,1726441841846,-255.0,0.00014008,2]
[338252171,1726441841857,-3923.97,0.0001401,2]
[338252173,1726441841867,-500.0,0.0001401,2]
[338252175,1726441841876,-2481.83,0.0001401,2]
[338252177,1726441841887,-1678.15,0.0001401,2]
[338252178,1726441841897,-151.0,0.0001401,2]
[338252179,1726441841907,-151.0,0.00014011,2]
[338252181,1726441841917,-151.0,0.00014011,2]
[338252182,1726441841929,-151.0,0.00014011,2]
[338252183,1726441841939,-151.345954,0.00014011,2]
[338252184,1726441841952,-151.0,0.00014011,2]
[338252185,1726441841963,-151.0,0.00014011,2]
[338252186,1726441841974,-151.0,0.00014011,2]
[338252187,1726441841983,-200.694188,0.00014011,2]
[338252188,1726441841993,-500.0,0.00014014,2]
[338252189,1726441842003,-500.0,0.00014022,2]
[338252190,1726441842015,-500.0,0.00014031,2]
[338252191,1726441842026,-151.0,0.00014032,2]
[338252192,1726441842038,-500.0,0.0001404,2]
[338252193,1726441842047,-500.0,0.00014049,2]
[338252194,1726441842057,-600.0,0.00014054,2]
[338252195,1726441842067,-600.0,0.00014054,2]
[338252196,1726441842076,-600.0,0.00014054,2]
[338252197,1726441842086,-600.0,0.00014054,2]
[338252198,1726441842096,-600.0,0.00014054,2]
[338252199,1726441842106,-600.0,0.00014054,2]
[338252200,1726441842116,-600.0,0.00014054,2]
[338252201,1726441842126,-500.0,0.00014058,2]
[338252202,1726441842137,-150.0,0.00014059,2]
[338252203,1726441842147,-1363.52,0.0001406,2]
[338252205,1726441842159,-2383.4,0.0001406,2]
[338252207,1726441842169,-500.0,0.0001406,2]
[338252209,1726441842179,-1069.49,0.0001406,2]
[338252211,1726441842190,-960.8,0.0001406,2]
[338252213,1726441842200,-26520.99632,0.0001406,2]
[338252215,1726441842210,-6630.249081,0.0001406,2]
[338252217,1726441842220,-35751.526646,0.0001406,2]
[338252219,1726441842230,-1610.805947,0.0001406,2]
[338252220,1726441842240,-971.881423,0.0001406,2]
[338252222,1726441842250,-500.0,0.00014066,2]
[338252224,1726441842260,-420.0,0.00014072,2]
[338252225,1726441842270,-500.0,0.00014073,2]
[338252227,1726441842280,-500.0,0.00014075,2]
[338252229,1726441842290,-500.0,0.00014084,2]
[338252232,1726441842318,-500.0,0.00014093,2]
[338252234,1726441842331,-500.0,0.00014102,2]
[338252236,1726441842342,-500.0,0.0001411,2]
[338252241,1726441842726,-183.994761,0.00014118,2]
[338252242,1726441842737,-500.0,0.00014119,2]
[338252243,1726441842747,-500.0,0.00014128,2]
[338252244,1726441842757,-496.078,0.00014137,2]
[338252245,1726441842767,-500.0,0.00014137,2]
[338252246,1726441842777,-203.0,0.0001414,2]
[338252247,1726441842786,-212.0,0.0001414,2]
[338252248,1726441842796,-500.0,0.00014146,2]
[338252250,1726441842807,-500.0,0.00014154,2]
[338252252,1726441842817,-500.0,0.00014163,2]
[338252254,1726441842827,-1001.12,0.00014165,2]
[338252256,1726441842836,-219.97,0.00014171,2]
[338252257,1726441842846,-500.0,0.00014172,2]
[338252258,1726441842856,-500.0,0.00014181,2]
[338252259,1726441842866,-500.0,0.0001419,2]
[338252260,1726441842876,-187.0,0.0001419,2]
[338252261,1726441842885,-500.0,0.00014198,2]
[338252262,1726441842894,-1000.4994,0.000142,2]
[338252263,1726441842904,-565.5771,0.000142,2]
[338252264,1726441842913,-718.3108,0.000142,2]
[338252265,1726441842924,-500.0,0.00014207,2]
[338252266,1726441842934,-500.0,0.00014216,2]
[338252268,1726441842944,-500.0,0.00014225,2]
[338252269,1726441842954,-500.0,0.00014231,2]
[338252270,1726441842964,-589.0,0.00014232,2]
[338252271,1726441842974,-80364.0,0.00014232,2]
[338252272,1726441842984,-165.171592,0.00014232,2]
[338252273,1726441842993,-288.46485,0.00014232,2]
[338252274,1726441843002,-151.0,0.00014232,2]
[338252275,1726441843012,-151.0,0.00014232,2]
[338252276,1726441843021,-151.0,0.00014232,2]
[338252277,1726441843031,-151.0,0.00014232,2]
[338252278,1726441843040,-151.0,0.00014232,2]
[338252279,1726441843049,-151.0,0.00014232,2]
[338252280,1726441843063,-182.588246,0.00014232,2]
[338252281,1726441843072,-151.0,0.00014232,2]
[338252282,1726441843082,-151.0,0.00014232,2]
[338252283,1726441843091,-182.588246,0.00014232,2]
[338252284,1726441843102,-276.377044,0.00014232,2]
[338252285,1726441843112,-276.377044,0.00014232,2]
[338252286,1726441843121,-151.0,0.00014232,2]
[338252287,1726441843131,-607.122333,0.00014232,2]
[338252288,1726441843141,-607.122333,0.00014232,2]
[338252289,1726441843151,-151.0,0.00014232,2]
[338252290,1726441843163,-3327.66,0.00014233,2]
[338252291,1726441843173,-500.0,0.00014233,2]
[338252292,1726441843184,-3555.11,0.00014233,2]
[338252293,1726441843195,-4057.5,0.00014233,2]
[338252294,1726441843205,-4180.3,0.00014233,2]
[338252295,1726441843216,-2083.63,0.00014233,2]
[338252296,1726441843227,-174.24646729,0.00014233,2]
[338252297,1726441843238,-7111.5,0.00014233,2]
[338252298,1726441843248,-2774.44,0.00014233,2]
[338252299,1726441843258,-500.0,0.00014233,2]
[338252300,1726441843269,-2946.8,0.00014233,2]
[338252301,1726441843279,-151.0,0.00014233,2]
[338252302,1726441843289,-151.0,0.00014233,2]
[338252303,1726441843299,-500.0,0.00014234,2]
[338252304,1726441843309,-26520.99632,0.00014234,2]
[338252305,1726441843319,-6630.249081,0.00014234,2]
[338252306,1726441843328,-35751.526646,0.00014234,2]
[338252307,1726441843338,-1610.805947,0.00014234,2]
[338252308,1726441843348,-971.881423,0.00014234,2]
[338252310,1726441843358,-600.0,0.00014241,2]
[338252312,1726441843367,-600.0,0.00014241,2]
[338252314,1726441843376,-500.0,0.00014242,2]
[338252316,1726441843386,-3923.97,0.00014249,2]
[338252317,1726441843396,-1076.42,0.00014249,2]
[338252318,1726441843406,-991.46,0.00014249,2]
[338252319,1726441843417,-500.0,0.00014249,2]
[338252320,1726441843428,-2583.01,0.00014249,2]
[338252321,1726441843438,-2053.95,0.00014249,2]
[338252322,1726441843448,-2449.38,0.00014249,2]
[338252323,1726441843457,-2481.83,0.00014249,2]
[338252324,1726441843467,-1678.15,0.00014249,2]
[338252325,1726441843477,-7953.64,0.00014249,2]
[338252326,1726441843488,-509.08,0.00014249,2]
[338252327,1726441843498,-2383.94,0.00014249,2]
[338252328,1726441843509,-1982.23,0.00014249,2]
[338252330,1726441843518,-500.0,0.00014249,2]
[338252332,1726441843527,-600.0,0.0001425,2]
[338252334,1726441843537,-600.0,0.0001425,2]
[338252335,1726441843548,-600.0,0.0001425,2]
[338252337,1726441843557,-600.0,0.0001425,2]
[338252339,1726441843567,-600.0,0.0001425,2]
[338252341,1726441843577,-600.0,0.0001425,2]